bitfinex/quotes_ETHUSD_20250626
["timestamp","ask_amount","ask_price","bid_price","bid_amount"]
[1750915990182,0.2016,2473.8,2473.7,4.04252738]
[1750915990798,2.4593,2474.0,2473.7,4.04252738]
[1750915990993,0.2016,2473.9,2473.6,4.04264013]
[1750915991667,0.2016,2473.9,2473.7,4.04252529]
[1750915992500,0.7784,2474.3,2474.0,4.04193932]
[1750915992799,0.98,2474.3,2473.8,0.2016]
[1750915993316,0.98,2474.3,2474.1,4.04186887]
[1750915993466,0.98,2474.3,2474.2,4.04171045]
[1750915993662,0.2016,2474.3,2474.2,4.04171045]
[1750915993866,0.2016,2474.3,2474.1,4.04180575]
[1750915994076,0.2016,2474.3,2474.0,4.04202703]
[1750915994077,0.2016,2474.3,2474.2,4.04171045]
[1750915994275,0.8215,2474.8,2474.6,4.04104599]
[1750915994467,0.2016,2474.7,2474.2,4.24331045]
[1750915994695,0.2016,2474.7,2474.3,4.04151901]
[1750915995374,0.2016,2474.7,2474.2,0.2016]
[1750915995569,0.7943,2474.6,2474.0,4.04199564]
[1750915995790,0.2016,2474.4,2474.2,4.04166173]
[1750915996600,0.2016,2474.4,2474.3,4.0415471]
[1750915997305,10.0,2475.1,2474.3,4.0415471]
[1750915997306,0.2016,2474.7,2474.5,4.04122044]
[1750915998680,0.2016,2474.7,2474.6,4.04105714]
[1750915998906,0.2016,2474.7,2474.5,4.04121208]
[1750915998907,0.2016,2474.7,2474.5,4.04120117]
[1750915999508,0.2016,2474.7,2474.6,4.04105714]
[1750916000614,0.2016,2474.7,2474.3,6.7836]
[1750916000615,0.2016,2474.7,2474.5,4.04116418]
[1750916001310,0.2016,2474.7,2474.4,4.04136583]
[1750916003084,0.2016,2474.7,2474.5,4.04121689]
[1750916003913,0.2016,2474.7,2474.4,4.04132163]
[1750916004114,0.2016,2474.7,2474.5,4.04119716]
[1750916004313,0.2016,2474.7,2474.6,4.04105714]
[1750916004996,0.2016,2474.7,2474.5,4.04116505]
[1750916005388,0.2016,2474.7,2474.6,4.04105714]
[1750916005714,0.2016,2474.7,2474.3,6.7836]
[1750916006188,0.2016,2474.7,2474.4,4.04134156]
[1750916008019,0.2016,2474.7,2474.5,4.04121586]
[1750916009008,0.2016,2474.7,2474.6,4.04105714]
[1750916010394,0.2016,2474.7,2474.5,4.0411158]
[1750916010799,0.2016,2474.7,2474.3,6.7836]
[1750916011103,0.9959,2475.0,2474.5,4.2427656]
[1750916011512,0.9959,2475.0,2474.6,4.04103321]
[1750916012218,0.9959,2475.0,2474.5,4.24274517]
[1750916012426,0.9959,2475.0,2474.5,0.2016]
[1750916012596,1.06419,2475.0,2474.3,6.582]
[1750916012795,0.2016,2474.9,2474.4,0.2016]
[1750916012993,0.7936,2474.8,2474.4,10.82194586]
[1750916013912,0.7936,2474.8,2474.4,6.7806]
[1750916014108,0.2016,2474.6,2474.2,0.2016]
[1750916014426,0.9952,2474.5,2474.2,6.579]
[1750916014595,0.9952,2474.5,2474.1,10.0]
[1750916014796,0.7936,2474.5,2474.1,10.0]
[1750916015118,0.2016,2474.3,2473.9,0.2016]
[1750916015327,0.7936,2474.5,2473.5,0.7516]
[1750916015328,7.0503932,2474.5,2473.5,0.7516]
[1750916015531,0.7936,2474.0,2473.6,10.0]
[1750916015694,0.2016,2473.9,2473.6,10.0]
[1750916016094,0.2016,2473.9,2473.6,14.04256847]
[1750916017293,0.8307,2474.3,2473.8,4.04236397]
[1750916017515,0.2016,2474.1,2473.8,4.04236397]
[1750916018395,0.2016,2474.1,2473.9,4.04214672]
[1750916018595,0.8307,2474.3,2474.0,4.04203718]
[1750916018804,0.8065,2474.7,2474.2,4.04161328]
[1750916019006,0.2016,2474.6,2474.3,10.62043243]
[1750916019413,0.2016,2474.6,2474.4,4.04135253]
[1750916020026,0.2016,2474.6,2474.3,10.62048088]
[1750916020515,0.2016,2474.6,2474.3,6.579]
[1750916021811,0.2016,2474.6,2474.4,4.04137241]
[1750916022331,0.2016,2474.6,2474.3,10.62050161]
[1750916024998,0.2016,2474.6,2474.3,6.579]
[1750916032134,0.2016,2474.3,2474.1,6.578]
[1750916032836,0.2016,2474.3,2473.9,4.04209698]
[1750916033037,0.2016,2474.3,2473.9,10.62009698]
[1750916034346,0.2016,2474.3,2474.0,4.04203434]
[1750916035051,0.2016,2474.3,2473.9,6.578]
[1750916035052,0.2016,2474.3,2474.1,4.04186921]
[1750916035820,2.66796382,2474.9,2474.2,4.04171045]
[1750916036026,0.2016,2474.5,2474.2,4.04171045]
[1750916036844,0.9631,2474.5,2474.1,4.0418244]
[1750916037466,0.9631,2474.5,2474.2,4.04171021]
[1750916037766,0.9631,2474.5,2474.3,4.04145657]
[1750916037919,0.9631,2474.5,2474.2,4.04165426]
[1750916038118,0.9631,2474.5,2474.1,4.04183208]
[1750916038755,0.9631,2474.5,2474.2,4.04162099]
[1750916039158,0.9631,2474.5,2474.3,4.04153009]
[1750916039354,0.2016,2474.5,2474.2,4.04170365]
[1750916039522,0.2016,2474.5,2474.0,0.2016]
[1750916040020,0.7894,2474.7,2474.4,4.04138376]
[1750916040222,0.2016,2474.6,2474.4,4.04138376]
[1750916040456,10.0,2475.0,2474.4,6.578]
[1750916040457,0.7861,2475.0,2474.4,6.578]
[1750916040627,0.7861,2475.3,2474.7,4.04076469]
[1750916040828,0.2016,2475.0,2474.6,4.24264122]
[1750916041040,0.2016,2475.0,2474.6,0.2016]
[1750916041244,0.2016,2475.0,2474.7,4.04089384]
[1750916042054,0.2016,2475.0,2474.6,4.24259494]
[1750916042246,0.2016,2475.0,2474.7,4.04086241]
[1750916042624,0.2016,2475.0,2474.6,4.24258582]
[1750916043153,0.2016,2475.0,2474.7,4.04089044]
[1750916044146,0.2016,2475.0,2474.6,0.2016]
[1750916044354,0.2016,2475.0,2474.7,4.04089268]
[1750916044727,0.2016,2475.0,2474.6,4.24260825]
[1750916045139,0.2016,2475.0,2474.7,4.04089206]
[1750916046059,0.2016,2475.0,2474.9,4.04056729]
[1750916046267,0.9877,2475.3,2474.9,4.04056729]
[1750916048756,0.7861,2475.3,2474.7,4.04078604]
[1750916049066,0.7861,2475.3,2474.8,4.04070906]
[1750916049067,0.2016,2475.2,2474.8,4.04070906]
[1750916050136,0.2016,2475.2,2474.8,4.04064549]
[1750916050337,0.2016,2475.2,2474.7,4.24243127]
[1750916051359,0.2016,2475.2,2474.7,0.2016]
[1750916051562,0.2016,2475.2,2474.8,4.04063987]
[1750916052667,0.2016,2475.2,2474.9,4.04056018]
[1750916052832,0.7861,2475.3,2474.9,4.04042911]
[1750916053034,0.9877,2475.3,2474.9,0.2016]
[1750916055669,0.9877,2475.3,2474.9,4.24214325]
[1750916056168,0.9877,2475.3,2474.9,0.2016]
[1750916057069,0.9877,2475.3,2474.9,4.24213994]
[1750916057566,0.9877,2475.3,2474.9,0.2016]
[1750916057769,0.9877,2475.3,2474.9,4.24201369]
[1750916057966,0.9877,2475.3,2474.9,0.2016]
[1750916058673,0.9877,2475.3,2474.9,4.2421441]
[1750916059579,0.9877,2475.3,2474.9,4.24214938]
[1750916060475,0.9877,2475.3,2474.9,0.2016]
[1750916061873,0.8143,2475.5,2475.1,4.0401987]
[1750916062067,1.0159,2475.5,2475.1,4.0401987]
[1750916063454,1.0159,2475.5,2475.0,0.2016]
[1750916064442,1.0159,2475.5,2475.0,4.24200331]
[1750916065149,1.0159,2475.5,2475.1,4.04023179]
[1750916065366,1.0159,2475.5,2475.0,4.24194401]
[1750916067349,1.0159,2475.5,2475.0,0.2016]
[1750916067979,1.0159,2475.5,2475.0,4.24198141]
[1750916068182,1.0159,2475.5,2475.1,4.04022739]
[1750916068652,1.0159,2475.5,2475.0,4.2419431]
[1750916069570,1.0159,2475.5,2475.2,4.04000649]
[1750916070079,1.0159,2475.5,2475.1,4.04018478]
[1750916070275,1.0159,2475.5,2475.2,4.04003553]
[1750916070478,0.2016,2475.5,2475.2,4.04003553]
[1750916071355,0.2016,2475.5,2475.1,0.8057]
[1750916071557,0.7576,2475.7,2475.1,0.8057]
[1750916071883,0.9592,2475.7,2475.4,4.03964483]
[1750916072199,1.0347,2475.9,2475.5,4.03942859]
[1750916072903,1.0347,2475.9,2475.4,0.2016]
[1750916073102,1.0347,2475.9,2475.4,4.24133804]
[1750916078409,1.0347,2475.9,2475.4,0.2016]
[1750916078777,0.2016,2475.7,2475.3,4.039895]
[1750916079612,0.2016,2475.7,2475.2,4.24162145]
[1750916080098,0.753,2475.6,2475.2,4.24158461]
[1750916080776,0.753,2475.6,2475.2,0.2016]
[1750916081095,0.753,2475.6,2475.2,4.24165829]
[1750916083280,0.2016,2475.7,2475.3,4.03991435]
[1750916085096,0.2016,2475.7,2475.2,4.2416132]
[1750916085303,0.2016,2475.7,2475.3,4.03990653]
[1750916086404,0.2016,2475.7,2475.4,4.03974589]
[1750916086603,0.2016,2475.7,2475.4,4.03967828]
[1750916087388,0.2016,2475.7,2475.2,0.2016]
[1750916087593,0.9609,2475.8,2475.5,4.03949711]
[1750916088002,0.9609,2475.8,2475.6,4.03939611]
[1750916088408,0.2016,2475.8,2475.7,4.03926162]
[1750916088602,0.7899,2476.4,2475.9,4.03891503]
[1750916088791,0.2016,2476.1,2475.8,4.03904458]
[1750916088981,0.984,2476.1,2475.8,4.03904458]
[1750916090005,0.2016,2476.1,2475.9,4.03890832]
[1750916091286,0.7531,2476.4,2476.1,4.03850298]
[1750916091485,0.7531,2476.4,2476.0,0.2016]
[1750916091680,0.7531,2476.4,2476.1,4.0386091]
[1750916091886,0.7531,2476.4,2476.2,4.03842779]
[1750916092576,0.7531,2476.4,2476.0,4.24033556]
[1750916092577,0.7531,2476.4,2476.3,4.03828292]
[1750916092779,0.9533,2476.6,2476.1,6.57]
[1750916093012,0.9533,2476.6,2476.3,4.03812963]
[1750916093306,0.2016,2476.6,2476.5,4.03795679]
[1750916093488,0.2016,2476.6,2476.2,0.2016]
[1750916093489,0.7608,2476.8,2476.4,4.03805087]
[1750916093689,0.9624,2476.8,2476.4,4.03805087]
[1750916093890,0.9624,2476.8,2476.5,4.0379464]
[1750916094092,0.9624,2476.8,2476.6,4.03778254]
[1750916094592,0.2016,2476.8,2476.6,4.03778589]
[1750916094793,0.2016,2476.9,2476.6,10.60663911]
[1750916095592,0.7608,2476.8,2476.5,0.2016]
[1750916096100,0.2016,2476.9,2476.7,4.03748082]
[1750916096301,0.2016,2476.9,2476.5,0.2016]
[1750916096611,0.2016,2476.9,2476.6,4.83799095]
[1750916096910,0.9944,2476.9,2476.5,4.23949775]
[1750916098182,0.9944,2476.9,2476.6,4.03778939]
[1750916098399,0.7928,2477.2,2476.9,4.03726777]
[1750916098603,0.2016,2477.1,2476.8,4.03739763]
[1750916098905,0.2016,2477.1,2476.7,4.03760255]
[1750916099121,0.2016,2477.1,2476.6,0.2016]
[1750916099275,0.7796,2477.0,2476.3,4.0381714]
[1750916099480,1.0005,2476.9,2476.4,6.7746]
[1750916100407,1.0005,2476.9,2476.4,10.81271366]
[1750916101980,1.0005,2476.9,2476.4,6.7746]
[1750916102205,1.0005,2476.9,2476.4,10.81271318]
[1750916103109,0.7989,2476.9,2476.4,6.7746]
[1750916103314,0.2016,2476.7,2476.4,6.573]
[1750916103510,0.7638,2476.6,2476.2,6.574]
[1750916103714,0.9654,2476.6,2476.2,6.574]
[1750916104517,0.2016,2476.6,2476.3,10.0]
[1750916104910,0.2016,2476.6,2476.1,4.24020076]
[1750916105210,0.2016,2476.6,2476.3,6.576]
[1750916106413,0.2016,2476.6,2476.3,16.576]
[1750916108114,0.8012,2476.7,2476.4,0.2016]
[1750916110225,0.2016,2476.8,2476.4,0.2016]
[1750916112531,0.7793,2476.7,2476.4,0.2016]
[1750916112836,0.9809,2476.5,2476.3,6.574]
[1750916113033,0.8294,2477.0,2476.3,6.578]
[1750916113206,0.8294,2477.0,2476.3,7.3606]
[1750916113399,0.2016,2476.8,2476.4,0.2016]
[1750916113595,0.2016,2476.8,2476.4,4.23971038]
[1750916114629,0.2016,2476.8,2476.4,0.2016]
[1750916115734,0.2016,2476.8,2476.4,4.23970011]
[1750916116630,0.2016,2476.8,2476.4,0.2016]
[1750916116998,0.2016,2476.8,2476.4,4.23967947]
[1750916119106,10.8294,2477.0,2476.4,4.03808318]
[1750916119306,11.031,2477.0,2476.5,0.2016]
[1750916120334,0.96670722,2476.9,2476.5,0.2016]
[1750916120531,11.031,2477.0,2476.5,0.2016]
[1750916121342,0.96709829,2476.9,2476.6,4.03776413]
[1750916121522,0.2016,2477.0,2476.7,10.61254078]
[1750916121705,0.2016,2477.0,2476.7,6.575]
[1750916122111,0.2016,2477.0,2476.7,10.61260094]
[1750916122712,0.7894,2477.2,2476.8,4.03745541]
[1750916122907,0.2016,2477.1,2476.8,4.03745541]
[1750916124030,0.2016,2477.1,2476.7,6.7766]
[1750916124217,0.2016,2477.3,2476.9,4.23880147]
[1750916124646,0.2016,2477.3,2477.0,4.03712711]
[1750916124951,0.2016,2477.3,2476.9,0.2016]
[1750916124952,0.2016,2477.3,2477.1,10.61595954]
[1750916125157,0.766,2477.4,2477.1,6.579]
[1750916125451,0.2016,2477.5,2477.1,10.81747987]
[1750916125627,0.2016,2477.5,2477.2,4.0367913]
[1750916125817,0.2016,2477.5,2477.1,10.81751099]
[1750916126019,0.96,2477.5,2477.1,6.7806]
[1750916126622,0.96,2477.5,2477.1,10.8175664]
[1750916127332,0.96,2477.5,2477.1,6.7806]
[1750916128252,0.96,2477.5,2477.1,10.81757289]
[1750916128956,0.96,2477.5,2477.1,6.7806]
[1750916129324,0.96,2477.5,2477.1,0.2016]
[1750916129534,0.96,2477.5,2477.2,6.576]
[1750916130339,0.96,2477.5,2477.2,6.574]
[1750916131150,0.96,2477.5,2477.1,0.2016]
[1750916131318,0.2016,2477.2,2477.0,6.574]
[1750916132228,0.7763,2477.1,2477.0,6.574]
[1750916132440,0.7763,2477.1,2476.7,0.2016]
[1750916132641,0.7763,2477.1,2476.8,6.575]
[1750916134844,0.7763,2477.1,2476.8,6.572]
[1750916135040,0.7763,2477.1,2476.7,0.2016]
[1750916135228,0.8254,2477.0,2476.6,6.572]
[1750916135433,0.8254,2476.7,2476.6,6.572]
[1750916138232,0.8254,2476.7,2476.4,6.57]
[1750916138432,0.2016,2476.6,2476.4,6.57]
[1750916144259,0.2016,2476.6,2476.2,0.2016]
[1750916144260,0.2016,2476.6,2476.3,0.7506]
[1750916144459,0.2016,2476.6,2476.4,6.575]
[1750916144844,0.2016,2476.6,2476.4,10.6130215]
[1750916145045,0.2016,2476.6,2476.4,6.575]
[1750916145354,0.2016,2476.6,2476.2,4.03834886]
[1750916145558,0.2016,2476.6,2476.4,6.575]
[1750916145757,1.0296,2476.6,2476.4,6.575]
[1750916148571,1.0296,2476.6,2476.2,4.2400273]
[1750916148959,1.0296,2476.6,2476.2,0.2016]
[1750916149170,0.96523513,2477.0,2476.0,0.2016]
[1750916149171,0.2016,2476.4,2476.0,0.2016]
[1750916149477,7.0503932,2476.8,2475.8,10.61399213]
[1750916149478,0.2016,2476.2,2475.8,10.61399213]
[1750916152368,0.2016,2476.2,2475.9,6.575]
[1750916154152,0.8075,2476.5,2475.9,7.3259]
[1750916154377,0.2016,2476.3,2476.1,4.03851343]
[1750916154872,0.2016,2476.3,2476.0,10.61171936]
[1750916155376,0.2016,2476.3,2476.1,4.03858758]
[1750916155572,0.2016,2476.3,2476.2,4.038446]
[1750916155746,0.2016,2476.5,2476.2,4.038446]
[1750916156977,0.2016,2476.5,2476.3,4.03827283]
[1750916158174,0.9854,2476.8,2476.3,5.01817283]
[1750916158349,0.9854,2476.8,2476.4,6.571]
[1750916158545,0.2016,2476.8,2476.6,4.03778554]
[1750916158946,0.2016,2476.8,2476.4,6.571]
[1750916159146,0.2016,2477.0,2476.5,4.23946089]
[1750916159373,0.2016,2477.0,2476.5,0.2016]
[1750916159578,0.7918,2476.9,2476.5,6.584]
[1750916159769,0.2016,2476.7,2476.5,6.584]
[1750916163375,0.2016,2476.7,2476.3,4.23984577]
[1750916163573,0.2016,2476.7,2476.3,10.82084577]
[1750916163985,0.2016,2476.7,2476.4,4.03798293]
[1750916164286,0.2016,2476.7,2476.5,4.03795584]
[1750916164891,0.2016,2476.7,2476.4,4.03808346]
[1750916167886,0.2016,2476.7,2476.3,6.7826]
[1750916169565,0.7574,2476.6,2476.3,6.7826]
[1750916169966,0.7574,2476.6,2476.3,6.581]
[1750916170171,0.959,2476.6,2476.3,6.581]
[1750916171176,0.959,2476.6,2476.1,0.2016]
[1750916171378,0.975,2476.2,2475.7,1.0274]
[1750916171687,0.975,2476.2,2475.8,6.576]
[1750916172071,0.975,2476.2,2475.8,6.578]
[1750916172662,0.975,2476.2,2475.7,4.24085866]
[1750916172868,0.975,2476.2,2475.7,10.81785866]
[1750916173264,0.975,2476.2,2475.7,4.24085866]
[1750916173465,0.975,2476.2,2475.7,10.81785866]
[1750916173800,0.975,2476.2,2475.8,4.03908009]
[1750916173986,0.975,2476.2,2475.7,10.81780221]
[1750916174678,0.975,2476.2,2475.7,6.7786]
[1750916175005,0.975,2476.2,2475.8,4.03896728]
[1750916175887,0.975,2476.2,2475.9,4.03892536]
[1750916178080,0.2016,2476.2,2476.0,4.03862104]
[1750916178269,0.2016,2476.4,2476.0,0.2016]
[1750916179497,0.2016,2476.4,2476.1,4.03850775]
[1750916179796,0.2016,2476.4,2476.0,4.24031298]
[1750916180376,0.2016,2476.4,2476.1,4.03856842]
[1750916181497,0.2016,2476.4,2476.2,4.03832238]
[1750916181814,0.7843,2476.7,2476.1,11.4183091]
[1750916182019,0.99490977,2476.8,2476.3,4.03828292]
[1750916182169,0.2016,2476.8,2476.4,4.03810843]
[1750916182371,0.2016,2476.8,2476.5,4.03782459]
[1750916185602,0.2016,2476.8,2476.4,4.03806172]
[1750916187307,0.2016,2476.8,2476.3,0.2016]
[1750916187482,0.7806,2476.7,2476.3,0.2016]
[1750916190299,0.7806,2476.7,2476.2,4.03844348]
[1750916190505,0.2016,2476.5,2476.2,4.03844348]
[1750916190706,0.2016,2476.5,2476.1,4.24015429]
[1750916191019,0.2016,2476.5,2476.1,10.81515429]
[1750916191387,0.2016,2476.5,2476.1,10.2016]
[1750916191983,0.2016,2476.5,2476.1,0.2016]
[1750916192189,0.7965,2476.4,2476.1,0.2016]
[1750916197715,0.7965,2476.4,2476.1,4.24020368]
[1750916201501,0.7965,2476.4,2476.1,0.2016]
[1750916202118,0.7965,2476.4,2475.9,10.60982584]
[1750916202293,0.9981,2476.4,2475.9,0.2016]
[1750916202492,0.9981,2476.4,2475.8,12.31099894]
[1750916202493,0.7965,2476.4,2475.8,12.31099894]
[1750916202719,0.2016,2476.2,2475.8,12.31099894]
[1750916202929,0.2016,2476.2,2475.8,10.60899894]
[1750916203693,0.2016,2476.2,2475.8,4.03899894]
[1750916204007,0.769,2476.1,2475.7,6.7716]
[1750916204402,0.769,2476.1,2475.7,10.81085167]
[1750916206033,0.769,2476.1,2475.7,6.7716]
[1750916206334,0.769,2476.1,2475.7,10.81085942]
[1750916206806,0.769,2476.1,2475.8,4.0390791]
[1750916207324,0.769,2476.1,2475.7,0.2016]
[1750916207527,0.7702,2475.8,2475.4,0.2016]
[1750916207727,0.2016,2475.7,2475.3,6.57]
[1750916207929,8.7523932,2476.0,2475.0,0.8302]
[1750916208225,0.2016,2475.4,2475.1,6.57]
[1750916208899,0.2016,2475.4,2475.0,0.2016]
[1750916209699,0.2016,2475.4,2475.0,4.24190932]
[1750916210123,0.2016,2475.4,2475.3,4.03991435]
[1750916211631,0.7593,2475.8,2475.3,4.03991435]
[1750916211834,0.2016,2475.7,2475.4,4.0397498]
[1750916212530,0.2016,2475.7,2475.2,0.2016]
[1750916212705,0.2016,2475.8,2475.4,4.24128158]
[1750916213208,0.2016,2475.8,2475.4,0.2016]
[1750916213425,0.2016,2475.8,2475.5,4.03955922]
[1750916215630,0.2016,2475.8,2475.4,4.24128348]
[1750916216428,0.2016,2475.8,2475.5,4.0395496]
[1750916216630,0.2016,2475.8,2475.4,4.24128901]
[1750916219122,0.2016,2475.8,2475.4,0.2016]
[1750916220012,0.2016,2475.5,2475.3,6.573]
[1750916220413,0.8036,2475.4,2475.3,6.573]
[1750916221631,0.8036,2475.4,2475.0,6.571]
[1750916221830,0.2016,2475.3,2475.0,6.571]
[1750916222012,0.2016,2475.3,2475.0,10.61140112]
[1750916223435,0.2016,2475.3,2475.0,6.571]
[1750916223651,0.2016,2475.3,2475.2,4.04007756]
[1750916224225,0.2016,2475.3,2475.0,10.61133724]
[1750916226925,0.2016,2475.3,2475.0,6.571]
[1750916227225,0.2016,2475.3,2475.1,4.04012976]
[1750916228154,0.2016,2475.3,2475.0,6.571]
[1750916228325,0.9668,2475.3,2475.0,6.571]
[1750916228744,0.9668,2475.3,2474.9,4.24216532]
[1750916229046,0.9668,2475.3,2474.9,0.2016]
[1750916231854,0.9668,2475.3,2474.9,4.24216394]
[1750916234936,0.9668,2475.3,2474.9,0.2016]
[1750916235141,0.8222,2475.1,2474.7,0.2016]
[1750916235350,0.2016,2474.9,2474.7,6.572]
[1750916235562,0.8222,2474.8,2474.6,0.65945233]
[1750916236851,1.61855932,2474.7,2474.6,0.65945233]
[1750916237454,2.58517343,2474.7,2474.6,0.65945233]
[1750916237655,1.61855932,2474.7,2474.6,0.65945233]
[1750916237855,1.61855932,2474.7,2473.3,0.7636]
[1750916237856,0.8268,2474.5,2473.3,0.7636]
[1750916238063,0.2016,2473.8,2473.4,0.2016]
[1750916238263,0.8268,2473.7,2473.1,0.7636]
[1750916238468,1.0284,2473.7,2473.3,10.0]
[1750916238685,1.0284,2473.7,2473.2,0.2016]
[1750916238968,0.8268,2473.7,2472.8,4.04397964]
[1750916239166,0.2016,2473.3,2472.8,4.24557964]
[1750916239367,0.2016,2473.3,2472.9,10.0]
[1750916239733,0.2016,2473.3,2473.2,4.04334465]
[1750916240036,0.8268,2473.7,2473.0,4.04366321]
[1750916240037,0.2016,2473.5,2473.1,4.04345392]
[1750916240557,0.2016,2473.5,2473.2,4.04330962]
[1750916241095,0.2016,2473.5,2473.1,4.04344834]
[1750916242046,0.2016,2473.5,2473.1,4.04348016]
[1750916242357,0.2016,2473.5,2473.2,4.04330704]
[1750916242544,0.2016,2473.5,2473.0,4.24523217]
[1750916242545,0.2016,2473.5,2473.1,4.04344857]
[1750916243268,0.2016,2473.5,2473.2,4.04331017]
[1750916244271,0.2016,2473.5,2473.0,0.2016]
[1750916244458,0.7831,2474.0,2473.6,4.04265478]
[1750916244655,0.2016,2473.8,2473.5,4.04278551]
[1750916245950,0.2016,2473.8,2473.6,4.04259407]
[1750916246350,0.7941,2473.7,2473.2,4.04324816]
[1750916246552,0.2016,2474.0,2473.6,4.04255879]
[1750916246749,0.2016,2474.0,2473.8,4.04234459]
[1750916247343,0.2016,2474.0,2473.9,4.04220057]
[1750916248442,0.7678,2474.3,2473.9,4.04220057]
[1750916248646,0.2016,2474.2,2474.0,4.04203718]
[1750916250178,0.2016,2474.2,2474.1,4.04187381]
[1750916251175,0.2016,2474.2,2474.0,4.04196974]
[1750916251362,0.2016,2474.2,2474.0,4.04193383]
[1750916252481,0.2016,2474.2,2474.1,4.04187381]
[1750916253282,0.2016,2474.2,2473.8,4.04220678]
[1750916253466,0.2016,2474.0,2473.9,4.04219157]
[1750916253786,0.7927,2474.9,2474.8,4.04073056]
[1750916253985,1.704,2475.3,2474.4,0.7975]
[1750916254294,0.2016,2475.1,2474.9,4.04054663]
[1750916254449,1.32210716,2475.1,2474.9,4.04054663]
[1750916254754,1.32210716,2475.1,2474.6,0.2016]
[1750916254755,0.2016,2475.1,2475.0,4.04040404]
[1750916254948,0.7927,2475.2,2475.1,4.04024079]
[1750916255154,0.2016,2475.3,2475.1,4.04024079]
[1750916255685,0.2016,2475.3,2475.0,4.04033962]
[1750916255978,0.2016,2475.3,2475.1,4.04019649]
[1750916256780,0.2016,2475.3,2475.2,4.04007756]
[1750916259157,0.7927,2475.6,2475.1,4.0401806]
[1750916259378,0.2016,2475.4,2475.1,4.0401806]
[1750916259780,0.2016,2475.4,2475.2,4.04000186]
[1750916260973,0.2016,2475.4,2475.3,4.03991435]
[1750916261377,0.7927,2475.6,2475.1,4.04023107]
[1750916261697,0.2016,2475.4,2475.1,4.04023107]
[1750916262388,0.2016,2475.4,2475.0,4.24193692]
[1750916262771,0.2016,2475.4,2475.0,0.2016]
[1750916263167,7.0503932,2475.2,2475.0,0.2016]
[1750916263373,7.0503932,2475.2,2473.9,0.8212]
[1750916263374,0.9516,2475.0,2474.3,0.2016]
[1750916263690,0.2016,2474.5,2474.1,4.24337059]
[1750916264188,0.2016,2474.5,2474.2,4.04165789]
[1750916264688,0.2016,2474.5,2474.1,4.24343301]
[1750916266898,0.2016,2474.5,2474.1,0.2016]
[1750916267080,0.2016,2474.5,2474.2,4.041561]
[1750916268200,0.2016,2474.5,2474.3,4.0413961]
[1750916268707,0.2016,2474.5,2474.2,4.0416595]
[1750916268910,0.2016,2474.5,2474.1,0.2016]
[1750916268911,0.2016,2474.5,2474.1,4.24341043]
[1750916269771,0.7647,2474.4,2473.8,6.593]
[1750916269996,0.2016,2474.3,2473.8,16.7946]
[1750916270302,0.2016,2474.3,2473.9,10.0]
[1750916270802,0.7647,2474.4,2473.4,0.7858]
[1750916270803,1.704,2474.2,2473.4,0.7858]
[1750916271134,0.7965,2474.1,2473.3,4.04308961]
[1750916271275,1.04655,2474.1,2473.3,4.04308961]
[1750916271475,0.7965,2474.0,2473.3,4.04308961]
[1750916272927,0.7965,2474.0,2472.4,0.2188755]
[1750916273208,0.7965,2474.0,2472.9,4.04368778]
[1750916275110,0.7965,2474.0,2473.0,4.04366937]
[1750916275314,0.8131,2473.8,2473.0,4.0435097]
[1750916275610,1.704,2473.7,2473.2,4.04322775]
[1750916276002,1.704,2473.7,2473.3,4.04310093]
[1750916276201,0.8131,2473.8,2473.3,4.04310093]
[1750916276523,0.8131,2473.8,2473.0,10.0]
[1750916276685,1.04841,2473.7,2473.0,10.0]
[1750916276879,1.04841,2473.7,2473.0,14.04365152]
[1750916277085,2.75241,2473.7,2473.0,10.0]
[1750916277704,2.75241,2473.7,2473.0,14.04361756]
[1750916278515,2.75241,2473.7,2472.8,4.04396848]
[1750916278688,0.275241,2473.6,2473.0,4.04353222]
[1750916279014,0.275241,2473.6,2472.9,10.0]
[1750916279516,0.275241,2473.6,2473.0,4.04354758]
[1750916280015,0.275241,2473.6,2473.0,4.04355921]
[1750916280820,0.2016,2473.4,2473.0,4.04355921]
[1750916281122,0.2016,2473.4,2472.9,0.2016]
[1750916281287,0.2016,2473.4,2473.0,4.04367165]
[1750916281682,0.2016,2473.4,2473.1,4.04350623]
[1750916282013,0.2016,2473.4,2473.2,4.04332982]
[1750916282183,0.7967,2473.7,2472.9,4.04383517]
[1750916282390,0.9983,2473.7,2473.5,4.04275833]
[1750916282795,0.9983,2473.7,2473.4,4.04297377]
[1750916283797,0.9983,2473.7,2473.3,0.2016]
[1750916284191,0.2016,2473.6,2473.2,6.8016]
[1750916284395,0.2016,2473.6,2473.2,10.84493885]
[1750916285623,0.2016,2473.6,2473.2,6.8016]
[1750916285823,0.2016,2473.6,2473.2,10.84494171]
[1750916287300,0.2016,2473.6,2473.3,4.04314195]
[1750916287504,0.2016,2473.6,2473.2,6.8016]
[1750916287692,0.2016,2473.6,2472.8,10.0]
[1750916287693,0.8319,2473.5,2472.8,4.04397104]
[1750916287893,0.2016,2473.3,2472.8,10.84757104]
[1750916288093,0.2016,2473.2,2472.8,6.602]
[1750916288408,0.2016,2473.2,2472.8,10.64599105]
[1750916288812,0.8319,2473.5,2473.1,4.04350814]
[1750916289015,0.2016,2473.4,2473.0,4.24522343]
[1750916289524,0.2016,2473.4,2473.2,4.04330922]
[1750916290027,0.2016,2473.4,2473.0,0.2016]
[1750916290229,0.8319,2473.5,2472.9,6.602]
[1750916290406,0.2016,2473.2,2472.9,6.602]
[1750916290598,0.2016,2473.2,2472.9,10.64583002]
[1750916290794,0.2016,2473.2,2473.0,4.04366264]
[1750916290992,0.2016,2473.2,2473.1,4.04350814]
[1750916291218,0.2016,2473.3,2472.9,6.8036]
[1750916291915,0.2016,2473.3,2472.9,10.84733558]